[Event "European Womens-ch 2025"]
[Site "Rhodes"]
[Date "2025.04.04"]
[Round "5.1"]
[White "Khotenashvili, Bella"]
[Black "Roebers, Eline"]
[Result "1-0"]
[Annotator "RC"]
[ECO "D45"]
[WhiteElo "2418"]
[BlackElo "2367"]
[PlyCount "63"]
[EventDate "2025.03.29"]
[EventType "swiss"]
[EventCountry "GRE"]
[SourceTitle "playchess.com"]
[Source "ChessBase"]
[SourceQuality "1"]
[TimeControl "40/5400+30:1800+30"]

1. d4 {[%emt 0:02:24]} d5 {[%emt 0:00:04]} 2. c4 {[%emt 0:00:55]} e6 {[%emt 0:00:04]} 3. Nf3 {[%emt 0:00:28]} Nf6 {[%emt 0:00:05]} 4. Nc3 {[%emt 0:00:47]} c6 {[%emt 0:00:04]} 5. e3 {[%emt 0:04:13]} Nbd7 {[%emt 0:00:04]} 6. b3 {[%emt 0:09:57]} Bb4 {[%emt 0:00:22]} 7. Bd2 {[%emt 0:05:03]} O-O {[%emt 0:00:05]} 8. Be2 {[%emt 0:06:28]} b6 {[%emt 0:07:53]} 9. O-O {[%emt 0:02:03]} Bd6 {[%emt 0:00:38]} 10. Qc2 {[%emt 0:03:45]} Bb7 {[%emt 0:02:20]} 11. cxd5 {[%emt 0:03:59]} exd5 {[%emt 0:01:30]} 12. a4 {[%emt 0:05:59]} a5 {[%emt 0:04:56]} 13. Bd3 {[%emt 0:01:55]} c5 {[%emt 0:00:59]} 14. Nb5 {[%emt 0:05:11]} Bb8 {[%emt 0:00:55]} 15. Bc3 {[%emt 0:08:35]} Re8 {[%emt 0:02:35]} 16. Bf5 {[%emt 0:07:40]} Ne4 {[%emt 0:11:35]} 17. Bb2 {[%emt 0:00:07]} g6 {[%emt 0:10:29]} 18. Bh3 {[%emt 0:08:41]} f5 {[%emt 0:07:01]} 19. Rad1 {[%emt 0:03:29]} Qe7 {[%emt 0:02:05]} 20. Ba1 {[%emt 0:02:38]} h6 {[%emt 0:09:03]} 21. Qb2 {[%emt 0:00:34]} Kh7 {[%emt 0:00:56]} 22. g3 {[%emt 0:00:19]} Rf8 {[%emt 0:11:22]} 23. Ne5 {[%emt 0:06:02]} Nxe5 {[%emt 0:13:09]} 24. dxe5 {[%emt 0:00:04]} h5 {[%emt 0:01:09]} 25. f3 {[%emt 0:01:02]} Ng5 {[%emt 0:02:10]} 26. Bg2 {[%emt 0:00:01]} Bc7 {[%emt 0:03:19]} 27. h4 {[%emt 0:01:41]} Ne6 {[%emt 0:00:28]} 28. f4 {[%emt 0:00:14]} Rad8 {[%emt 0:06:03]} 29. Bf3 {[%emt 0:03:19]} Rd7 {[%emt 0:01:24]} 30. Qg2 {[%emt 0:00:18]} Rfd8 {[%emt 0:01:15]} 31. Rd2 {[%emt 0:01:28]} Ba6 {[%emt 0:01:09]} 32. Rxd5 {[%emt 0:01:00]} 1-0

[Event "European Womens-ch 2025"]
[Site "Rhodes"]
[Date "2025.04.04"]
[Round "5.2"]
[White "Beydullayeva, Govhar"]
[Black "Maltsevskaya, Aleksandra"]
[Result "0-1"]
[Annotator "RC"]
[ECO "D38"]
[WhiteElo "2400"]
[BlackElo "2376"]
[PlyCount "66"]
[EventDate "2025.03.29"]
[EventType "swiss"]
[EventCountry "GRE"]
[SourceTitle "playchess.com"]
[Source "ChessBase"]
[SourceQuality "1"]
[TimeControl "40/5400+30:1800+30"]

1. d4 {[%emt 0:00:02]} Nf6 {[%emt 0:02:15]} 2. c4 {[%emt 0:00:07]} e6 {[%emt 0:00:07]} 3. Nf3 {[%emt 0:00:07]} d5 {[%emt 0:00:07]} 4. Nc3 {[%emt 0:00:04]} Bb4 {[%emt 0:00:06]} 5. Bg5 {[%emt 0:01:26]} h6 {[%emt 0:00:09]} 6. Bxf6 {[%emt 0:00:04]} Qxf6 {[%emt 0:00:05]} 7. e3 {[%emt 0:00:12]} O-O {[%emt 0:00:50]} 8. Rc1 {[%emt 0:00:42]} Nc6 {[%emt 0:08:40]} 9. Qb3 {[%emt 0:21:05]} dxc4 {[%emt 0:22:45]} 10. Bxc4 {[%emt 0:03:09]} Bd6 {[%emt 0:00:07]} 11. O-O {[%emt 0:17:26]} e5 {[%emt 0:00:35]} 12. Nd5 {[%emt 0:04:37]} Qd8 {[%emt 0:02:00]} 13. dxe5 {[%emt 0:05:40]} Nxe5 {[%emt 0:00:06]} 14. Nxe5 {[%emt 0:02:39]} Bxe5 {[%emt 0:00:07]} 15. f4 {[%emt 0:10:11]} Bd6 {[%emt 0:02:01]} 16. e4 {[%emt 0:01:24]} c6 {[%emt 0:00:20]} 17. Nc3 {[%emt 0:00:21]} b5 {[%emt 0:05:43]} 18. Be2 {[%emt 0:00:30]} Be6 {[%emt 0:00:53]} 19. Qc2 {[%emt 0:00:19]} f5 {[%emt 0:00:52]} 20. e5 {[%emt 0:01:21]} Be7 {[%emt 0:01:33]} 21. Kh1 {[%emt 0:01:34]} Qb6 {[%emt 0:01:00]} 22. a3 {[%emt 0:08:23]} Rad8 {[%emt 0:02:51]} 23. b4 {[%emt 0:01:08]} a5 {[%emt 0:01:19]} 24. bxa5 {[%emt 0:07:25]} Qxa5 {[%emt 0:00:49]} 25. a4 {[%emt 0:00:09]} Rc8 {[%emt 0:10:39]} 26. axb5 {[%emt 0:02:46]} Ba3 {[%emt 0:10:16]} 27. b6 {[%emt 0:05:32]} Bxc1 {[%emt 0:00:17]} 28. Qxc1 {[%emt 0:01:47]} Qxb6 {[%emt 0:00:06]} 29. Na4 {[%emt 0:00:05]} Qd4 {[%emt 0:02:29]} 30. Nc5 {[%emt 0:00:24]} Bd5 {[%emt 0:00:06]} 31. e6 {[%emt 0:02:45]} Ra8 {[%emt 0:04:35]} 32. Re1 {[%emt 0:02:23]} Qf2 {[%emt 0:01:02]} 33. Bf1 {[%emt 0:00:22]} Ra2 {[%emt 0:00:07]} 0-1

[Event "European Womens-ch 2025"]
[Site "Rhodes"]
[Date "2025.04.04"]
[Round "5.3"]
[White "Kirtadze, Anastasia"]
[Black "Danielian, Elina"]
[Result "1-0"]
[Annotator "RC"]
[ECO "C14"]
[WhiteElo "2180"]
[BlackElo "2398"]
[PlyCount "41"]
[EventDate "2025.03.29"]
[EventType "swiss"]
[EventCountry "GRE"]
[SourceTitle "playchess.com"]
[Source "ChessBase"]
[SourceQuality "1"]
[TimeControl "40/5400+30:1800+30"]

1. e4 {[%emt 0:02:00]} e6 {[%emt 0:00:13]} 2. d4 {[%emt 0:00:07]} d5 {[%emt 0:00:06]} 3. Nc3 {[%emt 0:00:10]} Nf6 {[%emt 0:00:17]} 4. Bg5 {[%emt 0:00:32]} Be7 {[%emt 0:00:10]} 5. e5 {[%emt 0:00:47]} Nfd7 {[%emt 0:00:06]} 6. Bxe7 {[%emt 0:00:11]} Qxe7 {[%emt 0:00:05]} 7. f4 {[%emt 0:00:13]} O-O {[%emt 0:00:17]} 8. Nf3 {[%emt 0:03:06]} c5 {[%emt 0:00:40]} 9. Bd3 {[%emt 0:14:36]} f6 {[%emt 0:00:39]} 10. O-O {[%emt 0:08:51]} Nc6 {[%emt 0:19:25]} 11. Nb5 {[%emt 0:19:16]} cxd4 {[%emt 0:30:49]} 12. Qe2 {[%emt 0:07:10]} fxe5 {[%emt 0:12:09]} 13. fxe5 {[%emt 0:10:41]} Rf4 {[%emt 0:02:10]} 14. Qd2 {[%emt 0:06:36]} Rxf3 {[%emt 0:04:04]} 15. Rxf3 {[%emt 0:01:39]} Ndxe5 {[%emt 0:00:10]} 16. Rh3 {[%emt 0:01:11]} h6 {[%emt 0:02:32]} 17. Rg3 {[%emt 0:02:36]} Nxd3 {[%emt 0:01:24]} 18. Qxd3 {[%emt 0:04:40]} e5 {[%emt 0:00:49]} 19. Qg6 {[%emt 0:01:23]} Be6 {[%emt 0:10:52]} 20. Rf1 {[%emt 0:05:34]} Re8 {[%emt 0:12:23]} 21. Nc7 {[%emt 0:02:26]} 1-0

[Event "European Womens-ch 2025"]
[Site "Rhodes"]
[Date "2025.04.04"]
[Round "5.4"]
[White "Zherebtsova, Alexandra"]
[Black "Narva, Mai"]
[Result "0-1"]
[Annotator "RC"]
[ECO "E71"]
[WhiteElo "2229"]
[BlackElo "2380"]
[PlyCount "94"]
[EventDate "2025.03.29"]
[EventType "swiss"]
[EventCountry "GRE"]
[SourceTitle "playchess.com"]
[Source "ChessBase"]
[SourceQuality "1"]
[TimeControl "40/5400+30:1800+30"]

1. d4 {[%emt 0:04:09]} Nf6 {[%emt 0:00:09]} 2. c4 {[%emt 0:00:09]} g6 {[%emt 0:00:13]} 3. Nc3 {[%emt 0:00:26]} Bg7 {[%emt 0:00:11]} 4. e4 {[%emt 0:00:17]} d6 {[%emt 0:00:08]} 5. h3 {[%emt 0:00:35]} O-O {[%emt 0:00:13]} 6. Be3 {[%emt 0:01:23]} Nc6 {[%emt 0:00:25]} 7. d5 {[%emt 0:00:55]} Ne5 {[%emt 0:00:06]} 8. f4 {[%emt 0:00:36]} Ned7 {[%emt 0:00:06]} 9. g4 {[%emt 0:01:05]} Re8 {[%emt 0:01:00]} 10. Bg2 {[%emt 0:07:50]} e6 {[%emt 0:01:10]} 11. g5 {[%emt 0:16:47]} Nh5 {[%emt 0:11:32]} 12. dxe6 {[%emt 0:06:33]} Bxc3+ {[%emt 0:04:20]} 13. bxc3 {[%emt 0:00:04]} Rxe6 {[%emt 0:00:14]} 14. Ne2 {[%emt 0:01:47]} Qe8 {[%emt 0:03:47]} 15. Qc2 {[%emt 0:12:27]} f5 {[%emt 1:14:26]} 16. O-O fxe4 {[%emt 0:00:30]} 17. Nd4 {[%emt 0:11:38]} Re7 {[%emt 0:00:30]} 18. f5 {[%emt 0:02:06]} Nc5 {[%emt 0:00:00]} 19. f6 {[%emt 0:03:27]} Rf7 {[%emt 0:01:00]} 20. Qf2 {[%emt 0:28:16]} Bd7 {[%emt 0:00:00]} 21. Qh4 {[%emt 0:00:30]} c6 {[%emt 0:01:00]} 22. Rad1 {[%emt 0:00:30]} Qe5 {[%emt 0:00:00]} 23. Ne2 Re8 {[%emt 0:01:00]} 24. Rd4 {[%emt 0:01:00]} d5 {[%emt 0:00:00]} 25. Rfd1 Nd3 {[%emt 0:01:00]} 26. cxd5 {[%emt 0:00:00]} cxd5 {[%emt 0:00:00]} 27. c4 {[%emt 0:00:00]} Bc6 {[%emt 0:00:00]} 28. cxd5 {[%emt 0:00:00]} Bxd5 {[%emt 0:00:00]} 29. Nc1 Ndf4 {[%emt 0:00:00]} 30. R4d2 {[%emt 0:01:31]} Bc6 {[%emt 0:02:30]} 31. Bf1 h6 {[%emt 0:00:00]} 32. gxh6 {[%emt 0:02:29]} Qxf6 {[%emt 0:00:00]} 33. Qxf6 {[%emt 0:00:00]} Rxf6 {[%emt 0:00:00]} 34. Rd8 {[%emt 0:00:01]} Rff8 35. Rxe8 Rxe8 {[%emt 0:00:00]} 36. Nb3 {[%emt 0:01:21]} Kh7 {[%emt 0:00:00]} 37. Kh2 {[%emt 0:00:10]} Nd5 {[%emt 0:00:00]} 38. Bxa7 {[%emt 0:00:25]} Ra8 {[%emt 0:00:00]} 39. Bc5 {[%emt 0:00:16]} Rxa2+ {[%emt 0:00:41]} 40. Rd2 {[%emt 0:00:00]} Ra4 {[%emt 0:04:19]} 41. Rd4 {[%emt 0:06:08]} b6 {[%emt 0:08:55]} 42. Bd6 {[%emt 0:02:00]} Ne3 {[%emt 0:22:05]} 43. Bg2 {[%emt 0:03:27]} Nf5 {[%emt 0:00:00]} 44. Rb4 {[%emt 0:04:25]} Nxd6 {[%emt 0:00:00]} 45. Rxb6 {[%emt 0:00:11]} Bd5 {[%emt 0:00:00]} 46. Nc5 {[%emt 0:01:16]} Rc4 {[%emt 0:00:00]} 47. Nd7 {[%emt 0:02:31]} Rc6 {[%emt 0:00:00]} 0-1

[Event "European Womens-ch 2025"]
[Site "Rhodes"]
[Date "2025.04.04"]
[Round "5.5"]
[White "Injac, Teodora"]
[Black "Zhukova, Natalia"]
[Result "1-0"]
[Annotator "RC"]
[ECO "A13"]
[WhiteElo "2454"]
[BlackElo "2306"]
[PlyCount "71"]
[EventDate "2025.03.29"]
[EventType "swiss"]
[EventCountry "GRE"]
[SourceTitle "playchess.com"]
[Source "ChessBase"]
[SourceQuality "1"]
[TimeControl "40/5400+30:1800+30"]

1. c4 {[%emt 0:04:21]} e6 {[%emt 0:00:45]} 2. g3 {[%emt 0:00:51]} d5 {[%emt 0:00:21]} 3. Bg2 {[%emt 0:00:05]} Nf6 {[%emt 0:00:30]} 4. Nf3 {[%emt 0:00:32]} d4 {[%emt 0:01:30]} 5. O-O {[%emt 0:03:19]} c5 {[%emt 0:00:43]} 6. e3 {[%emt 0:00:05]} Nc6 {[%emt 0:00:10]} 7. d3 {[%emt 0:00:09]} Be7 {[%emt 0:01:13]} 8. exd4 {[%emt 0:13:23]} cxd4 {[%emt 0:00:08]} 9. Na3 {[%emt 0:00:34]} O-O {[%emt 0:02:19]} 10. Re1 {[%emt 0:08:50]} Re8 {[%emt 0:22:17]} 11. Nc2 {[%emt 0:00:54]} a5 {[%emt 0:01:15]} 12. b3 {[%emt 0:14:10]} h6 {[%emt 0:17:34]} 13. Bb2 {[%emt 0:15:57]} Bc5 {[%emt 0:00:30]} 14. Ne5 {[%emt 0:01:26]} Nxe5 {[%emt 0:03:21]} 15. Rxe5 {[%emt 0:00:04]} Nd7 {[%emt 0:01:11]} 16. Re1 {[%emt 0:02:16]} e5 {[%emt 0:02:25]} 17. a3 {[%emt 0:05:47]} Nf6 {[%emt 0:02:42]} 18. b4 {[%emt 0:00:04]} Ba7 {[%emt 0:02:58]} 19. Qd2 {[%emt 0:03:05]} Rb8 {[%emt 0:06:25]} 20. c5 {[%emt 0:00:05]} Nd5 {[%emt 0:06:09]} 21. Nxd4 {[%emt 0:01:22]} Nf4 {[%emt 0:02:25]} 22. gxf4 {[%emt 0:03:18]} exd4 {[%emt 0:00:07]} 23. Rxe8+ {[%emt 0:00:17]} Qxe8 {[%emt 0:00:04]} 24. Bxd4 {[%emt 0:00:04]} Bf5 {[%emt 0:02:22]} 25. Qe3 {[%emt 0:03:12]} Qf8 {[%emt 0:01:05]} 26. Re1 {[%emt 0:00:23]} Be6 {[%emt 0:02:03]} 27. b5 {[%emt 0:02:51]} Re8 {[%emt 0:01:28]} 28. b6 {[%emt 0:01:16]} Bb8 {[%emt 0:00:44]} 29. Bxb7 {[%emt 0:02:50]} Bd7 {[%emt 0:00:06]} 30. Qd2 {[%emt 0:01:20]} Rxe1+ {[%emt 0:00:38]} 31. Qxe1 {[%emt 0:00:02]} Bxf4 {[%emt 0:00:09]} 32. Qe4 {[%emt 0:02:30]} Qb8 {[%emt 0:01:45]} 33. h4 {[%emt 0:02:31]} Bh3 {[%emt 0:05:43]} 34. Bc6 {[%emt 0:00:16]} Be6 {[%emt 0:01:35]} 35. Be3 {[%emt 0:02:11]} Be5 {[%emt 0:00:53]} 36. d4 {[%emt 0:00:23]} 1-0

[Event "European Womens-ch 2025"]
[Site "Rhodes"]
[Date "2025.04.04"]
[Round "5.6"]
[White "Arabidze, Meri"]
[Black "Kochavi, Dana"]
[Result "1/2-1/2"]
[Annotator "RC"]
[ECO "E62"]
[WhiteElo "2447"]
[BlackElo "2301"]
[PlyCount "60"]
[EventDate "2025.03.29"]
[EventType "swiss"]
[EventCountry "GRE"]
[SourceTitle "playchess.com"]
[Source "ChessBase"]
[SourceQuality "1"]
[TimeControl "40/5400+30:1800+30"]

1. d4 {[%emt 0:00:06]} Nf6 {[%emt 0:00:04]} 2. c4 {[%emt 0:00:05]} g6 {[%emt 0:00:04]} 3. g3 {[%emt 0:00:11]} Bg7 {[%emt 0:00:04]} 4. Bg2 {[%emt 0:00:04]} d6 {[%emt 0:00:05]} 5. Nc3 {[%emt 0:00:30]} O-O {[%emt 0:00:07]} 6. Nf3 {[%emt 0:00:09]} Nc6 {[%emt 0:00:04]} 7. d5 {[%emt 0:00:13]} Na5 {[%emt 0:00:04]} 8. b3 {[%emt 0:00:15]} a6 {[%emt 0:00:05]} 9. Bb2 {[%emt 0:02:03]} Rb8 {[%emt 0:00:12]} 10. Nd2 {[%emt 0:02:25]} b5 {[%emt 0:02:09]} 11. cxb5 {[%emt 0:20:49]} axb5 {[%emt 0:00:05]} 12. b4 {[%emt 0:04:39]} Nc4 {[%emt 0:00:35]} 13. Nxc4 {[%emt 0:00:22]} bxc4 {[%emt 0:00:04]} 14. a3 {[%emt 0:09:50]} e6 {[%emt 0:06:49]} 15. dxe6 {[%emt 0:03:25]} Bxe6 {[%emt 0:03:44]} 16. Qd2 {[%emt 0:10:13]} c5 {[%emt 0:11:54]} 17. Nd1 {[%emt 0:03:55]} d5 {[%emt 0:14:15]} 18. e3 {[%emt 0:00:39]} Ne4 {[%emt 0:06:48]} 19. Bxe4 {[%emt 0:06:52]} Bxb2 {[%emt 0:00:06]} 20. Qxb2 {[%emt 0:03:52]} dxe4 {[%emt 0:00:05]} 21. Nc3 {[%emt 0:04:01]} cxb4 {[%emt 0:03:38]} 22. axb4 {[%emt 0:00:13]} Qf6 {[%emt 0:00:08]} 23. O-O-O {[%emt 0:01:29]} Rfd8 {[%emt 0:13:22]} 24. Rxd8+ {[%emt 0:04:55]} Rxd8 {[%emt 0:00:05]} 25. Rd1 {[%emt 0:00:20]} Rb8 {[%emt 0:01:34]} 26. Nxe4 {[%emt 0:05:20]} Qxb2+ {[%emt 0:00:05]} 27. Kxb2 {[%emt 0:00:03]} Rxb4+ {[%emt 0:00:05]} 28. Kc3 {[%emt 0:00:27]} Rb3+ {[%emt 0:00:51]} 29. Kd4 {[%emt 0:04:19]} Rb8 {[%emt 0:03:05]} 30. Kc3 {[%emt 0:04:36]} Rb3+ {[%emt 0:00:06]} 1/2-1/2

[Event "European Womens-ch 2025"]
[Site "Rhodes"]
[Date "2025.04.04"]
[Round "5.7"]
[White "Mammadova, Gulnar"]
[Black "Tsolakidou, Stavroula"]
[Result "1/2-1/2"]
[Annotator "RC"]
[ECO "B31"]
[WhiteElo "2342"]
[BlackElo "2445"]
[PlyCount "44"]
[EventDate "2025.03.29"]
[EventType "swiss"]
[EventCountry "GRE"]
[SourceTitle "playchess.com"]
[Source "ChessBase"]
[SourceQuality "1"]
[TimeControl "40/5400+30:1800+30"]

1. e4 {[%emt 0:00:03]} c5 {[%emt 0:04:03]} 2. Nf3 {[%emt 0:00:08]} Nc6 {[%emt 0:00:18]} 3. Bb5 {[%emt 0:00:14]} g6 {[%emt 0:00:22]} 4. Bxc6 {[%emt 0:01:37]} bxc6 {[%emt 0:00:07]} 5. d4 {[%emt 0:00:18]} Bg7 {[%emt 0:00:33]} 6. dxc5 {[%emt 0:01:09]} Qa5+ {[%emt 0:00:30]} 7. Nbd2 {[%emt 0:01:47]} Qxc5 {[%emt 0:01:10]} 8. O-O {[%emt 0:00:48]} d6 {[%emt 0:00:59]} 9. Nb3 {[%emt 0:02:02]} Qb6 {[%emt 0:07:58]} 10. Re1 {[%emt 0:05:01]} a5 {[%emt 0:01:55]} 11. a4 {[%emt 0:06:15]} Nf6 {[%emt 0:00:50]} 12. h3 {[%emt 0:08:52]} O-O {[%emt 0:09:57]} 13. e5 {[%emt 0:03:15]} dxe5 {[%emt 0:03:50]} 14. Nxe5 {[%emt 0:00:52]} Qc7 {[%emt 0:25:44]} 15. Bf4 {[%emt 0:07:02]} Nd5 {[%emt 0:00:41]} 16. Bg3 {[%emt 0:00:40]} Qb6 {[%emt 0:00:56]} 17. Qd4 {[%emt 0:07:11]} Qxd4 {[%emt 0:02:33]} 18. Nxd4 {[%emt 0:00:27]} Bxe5 {[%emt 0:01:50]} 19. Rxe5 {[%emt 0:03:24]} f6 {[%emt 0:00:22]} 20. Re2 {[%emt 0:02:55]} e5 {[%emt 0:02:12]} 21. Nb3 {[%emt 0:02:02]} Bf5 {[%emt 0:06:48]} 22. c3 {[%emt 0:04:05]} Rfb8 {[%emt 0:13:07]} 1/2-1/2

[Event "European Womens-ch 2025"]
[Site "Rhodes"]
[Date "2025.04.04"]
[Round "5.8"]
[White "Ushenina, Anna"]
[Black "Zimina, Olga"]
[Result "1/2-1/2"]
[Annotator "RC"]
[ECO "D35"]
[WhiteElo "2428"]
[BlackElo "2293"]
[PlyCount "36"]
[EventDate "2025.03.29"]
[EventType "swiss"]
[EventCountry "GRE"]
[SourceTitle "playchess.com"]
[Source "ChessBase"]
[SourceQuality "1"]
[TimeControl "40/5400+30:1800+30"]

1. d4 {[%emt 0:00:58]} Nf6 {[%emt 0:00:15]} 2. c4 {[%emt 0:00:15]} e6 {[%emt 0:00:33]} 3. Nc3 {[%emt 0:00:36]} d5 {[%emt 0:00:13]} 4. cxd5 {[%emt 0:05:06]} exd5 {[%emt 0:00:26]} 5. Bg5 {[%emt 0:00:10]} Bb4 {[%emt 0:00:53]} 6. e3 {[%emt 0:04:02]} h6 {[%emt 0:00:07]} 7. Bh4 {[%emt 0:00:40]} g5 {[%emt 0:00:43]} 8. Bg3 {[%emt 0:00:01]} Ne4 {[%emt 0:00:11]} 9. Nge2 {[%emt 0:01:12]} h5 {[%emt 0:00:48]} 10. h4 {[%emt 0:14:51]} Nxg3 {[%emt 0:04:15]} 11. Nxg3 {[%emt 0:03:16]} gxh4 {[%emt 0:03:23]} 12. Nxh5 {[%emt 0:00:11]} c6 {[%emt 0:07:59]} 13. Qf3 {[%emt 0:20:39]} Qg5 {[%emt 0:03:20]} 14. Be2 {[%emt 0:03:45]} Be6 {[%emt 0:06:12]} 15. g4 {[%emt 0:18:27]} hxg3 {[%emt 0:14:54]} 16. O-O-O {[%emt 0:07:46]} Nd7 {[%emt 0:01:06]} 17. Qxg3 {[%emt 0:02:34]} Qxg3 {[%emt 0:01:14]} 18. Nxg3 {[%emt 0:00:01]} Ke7 {[%emt 0:03:09]} 1/2-1/2

[Event "European Womens-ch 2025"]
[Site "Rhodes"]
[Date "2025.04.04"]
[Round "5.9"]
[White "Heinemann, Josefine"]
[Black "Mkrtchian, Lilit"]
[Result "1/2-1/2"]
[Annotator "RC"]
[ECO "B19"]
[WhiteElo "2297"]
[BlackElo "2388"]
[PlyCount "37"]
[EventDate "2025.03.29"]
[EventType "swiss"]
[EventCountry "GRE"]
[SourceTitle "playchess.com"]
[Source "ChessBase"]
[SourceQuality "1"]
[TimeControl "40/5400+30:1800+30"]

1. e4 {[%emt 0:00:04]} c6 {[%emt 0:00:37]} 2. d4 {[%emt 0:00:10]} d5 {[%emt 0:00:09]} 3. Nd2 {[%emt 0:00:36]} dxe4 {[%emt 0:00:55]} 4. Nxe4 {[%emt 0:00:06]} Bf5 {[%emt 0:00:51]} 5. Ng3 {[%emt 0:01:54]} Bg6 {[%emt 0:00:12]} 6. h4 {[%emt 0:00:18]} h6 {[%emt 0:00:15]} 7. Nf3 {[%emt 0:00:20]} e6 {[%emt 0:00:26]} 8. Ne5 {[%emt 0:02:05]} Bh7 {[%emt 0:00:35]} 9. Bd3 {[%emt 0:00:47]} Bxd3 {[%emt 0:00:26]} 10. Qxd3 {[%emt 0:00:11]} Nd7 {[%emt 0:00:15]} 11. Bf4 {[%emt 0:01:22]} Nxe5 {[%emt 0:14:18]} 12. Bxe5 {[%emt 0:00:21]} Nf6 {[%emt 0:01:04]} 13. O-O-O {[%emt 0:05:27]} Qa5 {[%emt 0:03:07]} 14. Kb1 {[%emt 0:05:48]} O-O-O {[%emt 0:02:28]} 15. Qf3 {[%emt 0:06:05]} Qd5 {[%emt 0:05:18]} 16. Qe2 {[%emt 0:00:53]} Bd6 {[%emt 0:17:29]} 17. c4 {[%emt 0:07:13]} Qa5 {[%emt 0:00:17]} 18. f3 {[%emt 0:15:56]} Rd7 {[%emt 0:23:28]} 19. a3 {[%emt 0:15:02]} 1/2-1/2

[Event "European Womens-ch 2025"]
[Site "Rhodes"]
[Date "2025.04.04"]
[Round "5.10"]
[White "Antolak, Julia"]
[Black "Milliet, Sophie"]
[Result "0-1"]
[Annotator "RC"]
[ECO "C77"]
[WhiteElo "2314"]
[BlackElo "2371"]
[PlyCount "100"]
[EventDate "2025.03.29"]
[EventType "swiss"]
[EventCountry "GRE"]
[SourceTitle "playchess.com"]
[Source "ChessBase"]
[SourceQuality "1"]
[TimeControl "40/5400+30:1800+30"]

1. e4 {[%emt 0:01:20]} e5 {[%emt 0:00:20]} 2. Nf3 {[%emt 0:00:12]} Nc6 {[%emt 0:00:03]} 3. Bb5 {[%emt 0:00:08]} a6 {[%emt 0:00:09]} 4. Ba4 {[%emt 0:00:06]} Nf6 {[%emt 0:00:08]} 5. O-O {[%emt 0:00:14]} Bc5 {[%emt 0:00:07]} 6. Nc3 {[%emt 0:00:12]} b5 {[%emt 0:01:05]} 7. Bb3 {[%emt 0:00:26]} O-O {[%emt 0:00:32]} 8. a4 {[%emt 0:00:46]} b4 {[%emt 0:16:08]} 9. Nd5 {[%emt 0:00:18]} Nxe4 {[%emt 0:10:38]} 10. d3 {[%emt 0:00:14]} Nf6 {[%emt 0:00:02]} 11. Bg5 {[%emt 0:00:14]} Be7 {[%emt 0:00:03]} 12. Nxe7+ {[%emt 0:00:18]} Qxe7 {[%emt 0:00:02]} 13. Re1 {[%emt 0:00:18]} h6 {[%emt 0:00:33]} 14. Bh4 {[%emt 0:00:12]} Bb7 {[%emt 0:00:44]} 15. d4 {[%emt 0:01:08]} e4 {[%emt 0:00:44]} 16. a5 {[%emt 0:00:13]} Rfe8 {[%emt 0:09:19]} 17. c3 {[%emt 0:05:47]} Rab8 {[%emt 0:12:37]} 18. d5 {[%emt 0:08:12]} Ne5 {[%emt 0:00:34]} 19. Rxe4 {[%emt 0:08:16]} Nxf3+ {[%emt 0:00:38]} 20. gxf3 {[%emt 0:00:05]} Qd6 {[%emt 0:05:21]} 21. Bg3 {[%emt 0:03:08]} Qc5 {[%emt 0:03:28]} 22. cxb4 {[%emt 0:03:03]} Qf8 {[%emt 0:05:01]} 23. Rd4 {[%emt 0:05:50]} d6 {[%emt 0:00:34]} 24. Qd3 {[%emt 0:04:40]} Re5 {[%emt 0:01:42]} 25. Rc1 {[%emt 0:07:53]} Qd8 {[%emt 0:00:20]} 26. Bxe5 {[%emt 0:06:23]} dxe5 {[%emt 0:00:03]} 27. d6 {[%emt 0:00:19]} c5 {[%emt 0:16:34]} 28. Rdc4 {[%emt 0:02:39]} e4 {[%emt 0:04:00]} 29. fxe4 {[%emt 0:02:08]} Nxe4 {[%emt 0:00:13]} 30. Rxc5 {[%emt 0:06:22]} Nxc5 {[%emt 0:06:59]} 31. Rxc5 {[%emt 0:00:17]} Qh4 {[%emt 0:00:15]} 32. Qf5 {[%emt 0:16:46]} Qxb4 {[%emt 0:01:16]} 33. Qxf7+ {[%emt 0:02:28]} Kh8 {[%emt 0:00:00]} 34. Re5 {[%emt 0:02:07]} Qg4+ {[%emt 0:01:09]} 35. Kf1 {[%emt 0:00:01]} Bg2+ {[%emt 0:00:25]} 36. Ke1 {[%emt 0:00:11]} Qb4+ {[%emt 0:05:57]} 37. Ke2 {[%emt 0:00:23]} Bc6 {[%emt 0:00:29]} 38. d7 {[%emt 0:08:18]} Qg4+ {[%emt 0:00:09]} 39. f3 {[%emt 0:04:04]} Qg2+ {[%emt 0:00:02]} 40. Kd3 {[%emt 0:00:00]} Bxd7 {[%emt 0:00:00]} 41. Bc4 {[%emt 0:11:05]} Qxb2 {[%emt 0:05:38]} 42. Re7 {[%emt 0:01:00]} Bc6 {[%emt 0:12:32]} 43. Ke3 {[%emt 0:01:50]} Rd8 {[%emt 0:00:37]} 44. Kf4 {[%emt 0:01:03]} Qxh2+ {[%emt 0:00:30]} 45. Kg4 {[%emt 0:00:57]} Qg2+ {[%emt 0:04:29]} 46. Kh4 {[%emt 0:00:12]} Qh2+ {[%emt 0:06:29]} 47. Kg4 {[%emt 0:02:34]} Qg2+ {[%emt 0:00:40]} 48. Kh4 {[%emt 0:00:05]} Rd4+ {[%emt 0:01:17]} 49. f4 {[%emt 0:01:12]} Rxf4+ {[%emt 0:00:56]} 50. Qxf4 {[%emt 0:00:48]} g5+ {[%emt 0:00:01]} 0-1